bitfinex-derivatives/quotes_SOLF0:USTF0_20250904
["timestamp","ask_amount","ask_price","bid_price","bid_amount"]
[1757019897448,4.68,203.07,202.98,7.92]
[1757019897848,108.23768155,203.08,202.98,7.92]
[1757019898347,4.68,203.07,202.98,7.92]
[1757019899147,108.23768155,203.08,202.98,7.92]
[1757019899449,4.68,203.07,202.98,7.92]
[1757019900050,108.23768155,203.08,202.98,7.92]
[1757019900452,4.68,203.07,202.97,0.03286903]
[1757019900754,19.5,203.07,202.97,0.03286903]
[1757019901155,4.68,203.05,202.97,0.03286903]
[1757019902154,0.85768155,203.08,202.97,0.03286903]
[1757019902155,4.68,203.03,202.97,0.03286903]
[1757019904546,0.03685199,203.02,202.97,0.03286903]
[1757019904754,4.71685199,203.02,202.98,7.92]
[1757019904945,4.68,203.01,202.98,7.92]
[1757019905146,0.03685199,203.02,202.98,7.92]
[1757019905345,4.68,203.01,202.98,7.92]
[1757019906045,4.68,203.01,202.97,0.03286903]
[1757019908053,4.68,203.01,202.91,7.92]
[1757019908547,0.03685199,203.02,202.91,7.92]
[1757019909354,4.68,203.01,202.91,7.92]
[1757019909659,0.03685199,203.02,202.91,7.92]
[1757019910059,4.68,203.01,202.91,7.92]
[1757019910255,0.03685199,203.02,202.91,7.92]
[1757019910461,4.68,203.01,202.91,7.92]
[1757019910656,0.03685199,203.02,202.91,7.92]
[1757019911061,13.39685199,203.02,202.91,7.92]
[1757019911562,4.68,203.01,202.91,7.92]
[1757019911963,13.39685199,203.02,202.91,7.92]
[1757019912159,4.68,203.01,202.91,7.92]
[1757019912463,13.39685199,203.02,202.91,7.92]
[1757019913058,4.68,203.01,202.91,7.92]
[1757019913564,13.39685199,203.02,202.91,7.92]
[1757019914167,4.68,203.01,202.91,7.92]
[1757019914462,18.90801536,203.02,202.87,7.92]
[1757019914670,4.68,203.01,202.87,7.92]
[1757019914865,5.51116337,203.01,202.87,7.92]
[1757019915166,4.71679402,202.96,202.87,7.92]
[1757019926470,0.03679402,202.96,202.87,7.92]
[1757019926870,0.03679402,202.96,202.87,12.05334955]
[1757019927076,0.03679402,202.96,202.88,7.46]
[1757019930979,0.03679402,202.96,202.89,7.46]
[1757019931678,0.03679402,202.96,202.89,11.59334955]
[1757019931975,0.03679402,202.96,202.91,7.46]
[1757019946892,0.03679402,202.96,202.91,4.13334955]
[1757019947191,0.03679402,202.96,202.92,7.46]
[1757019947392,0.03679402,202.96,202.92,11.59334955]
[1757019947593,0.03679402,202.96,202.93,7.46]
[1757019949096,0.03679402,202.96,202.94,7.48]
[1757019949798,323.13116337,203.11,202.96,7.48]
[1757019949987,4.72,203.08,202.96,7.48]
[1757019950387,0.8575653,203.09,202.96,7.48]
[1757019950593,4.72,203.08,202.96,7.48]
[1757019951097,0.8575653,203.09,202.96,7.48]
[1757019951694,4.72,203.08,202.96,7.48]
[1757019951995,0.8575653,203.09,202.96,7.48]
[1757019952196,0.8575653,203.09,203.0,7.51191183]
[1757019952391,4.72,203.08,203.0,7.51191183]
[1757019952597,0.8575653,203.09,203.0,7.51191183]
[1757019952798,4.72,203.08,203.0,7.51191183]
[1757019953295,0.8575653,203.09,203.0,7.51191183]
[1757019953598,4.72,203.08,203.0,7.51191183]
[1757019955398,322.34,203.11,203.0,7.51191183]
[1757019955597,4.72,203.11,203.0,7.51191183]
[1757019957495,5.51116337,203.19,203.0,7.51191183]
[1757019957496,19.66,203.16,203.0,7.51191183]
[1757019957696,0.85735403,203.12,203.0,7.51191183]
[1757019957992,0.85735403,203.12,203.0,7.48]
[1757019958190,4.72,203.11,203.0,7.48]
[1757019958394,0.85735403,203.12,203.0,7.48]
[1757019958694,4.72,203.11,203.03,0.03186093]
[1757019960200,4.72,203.11,203.03,7.51186093]
[1757019962897,4.72,203.14,203.03,0.03186093]
[1757019968308,48.19729067,203.15,203.03,7.51186093]
[1757019968702,4.72,203.14,203.03,7.51186093]
[1757019969307,4.72,203.2,203.04,11.6]
[1757019969605,4.72,203.2,203.05,7.48]
[1757019970202,4.72,203.2,203.08,7.48]
[1757019970400,4.72,203.2,203.11,7.48]
[1757019972704,0.85710064,203.21,203.11,7.48]
[1757019972909,4.72,203.2,203.11,7.48]
[1757019982111,4.7,203.2,203.11,7.48]
[1757019982311,0.85710064,203.21,203.11,7.48]
[1757019982511,4.7,203.2,203.11,7.48]
[1757019982807,4.7,203.2,203.1,0.03195429]
[1757019984005,4.7,203.2,203.11,7.85]
[1757019984204,0.85698455,203.21,203.11,7.85]
[1757019984409,4.7,203.2,203.1,0.03195429]
[1757019984605,4.7,203.2,203.08,7.85]
[1757019985106,0.85698455,203.21,203.08,7.85]
[1757019985308,4.7,203.2,203.12,0.03136244]
[1757019989418,125.76,203.2,203.12,0.03136244]
[1757019990411,4.7,203.2,203.13,7.85]
[1757019994421,0.85686849,203.24,203.13,7.85]
[1757019994615,4.7,203.23,203.13,7.85]
[1757019996324,4.7,203.26,203.13,7.85]
[1757019997216,0.85675247,203.28,203.13,7.85]
[1757019997614,4.7,203.27,203.13,7.85]
[1757019999920,0.85675247,203.28,203.13,7.85]
[1757020000121,4.7,203.27,203.18,7.88163587]
[1757020004828,0.85675247,203.28,203.18,7.88163587]
[1757020005226,4.7,203.27,203.18,7.88163587]
[1757020005426,0.85675247,203.28,203.18,7.88163587]
[1757020005929,4.7,203.27,203.18,7.88163587]
[1757020007324,0.85675247,203.28,203.18,7.88163587]
[1757020007524,4.7,203.27,203.18,7.88163587]
[1757020011830,0.85675247,203.28,203.18,7.88163587]
[1757020012032,4.7,203.31,203.18,7.88163587]
[1757020012430,4.7,203.31,203.18,7.85]
[1757020012841,4.7,203.31,203.19,4.4289]
[1757020013038,4.7,203.31,203.2,7.52]
[1757020014036,0.85650997,203.33,203.2,7.52]
[1757020014244,4.7,203.32,203.23,0.03135043]
[1757020014744,0.85650997,203.33,203.24,7.52]
[1757020015445,4.7,203.32,203.24,7.52]
[1757020016239,0.85650997,203.33,203.24,7.52]
[1757020016443,4.7,203.32,203.24,7.52]
[1757020016848,0.85650997,203.33,203.24,7.52]
[1757020017044,4.7,203.32,203.24,7.52]
[1757020017246,0.85650997,203.33,203.24,7.52]
[1757020018144,4.7,203.32,203.24,7.52]
[1757020018341,0.85650997,203.33,203.24,7.52]
[1757020018650,24.99116337,203.32,203.23,0.03135043]
[1757020018851,20.29116337,203.31,203.23,0.03135043]
[1757020019047,4.7,203.3,203.23,0.03135043]
[1757020021951,10.21116337,203.3,203.23,0.03135043]
[1757020022250,120.66,203.29,203.23,0.03135043]
[1757020022450,4.7,203.28,203.23,0.03135043]
[1757020022649,125.36,203.29,203.23,0.03135043]
[1757020024356,4.7,203.29,203.23,0.03135043]
[1757020024552,125.36,203.29,203.23,0.03135043]
[1757020035456,130.87116337,203.29,203.23,0.03135043]
[1757020039469,5.51116337,203.28,203.23,7.58135043]
[1757020039767,4.7,203.27,203.23,7.58135043]
[1757020039964,5.51116337,203.28,203.23,7.58135043]
[1757020041167,4.7,203.27,203.23,7.58135043]
[1757020041366,10.21116337,203.28,203.23,0.03135043]
[1757020041671,5.51116337,203.3,203.24,7.55]
[1757020042767,91.55116337,203.31,203.24,7.55]
[1757020054482,4.7,203.3,203.24,7.55]
[1757020067797,10.19116337,203.3,203.23,0.03135043]
[1757020068401,10.19116337,203.3,203.24,8.08]
[1757020068602,4.68,203.3,203.24,8.08]
[1757020070898,10.19116337,203.31,203.24,8.08]
[1757020071105,5.51116337,203.31,203.24,8.08]
[1757020071301,4.68,203.3,203.24,8.08]
[1757020078705,5.51116337,203.31,203.24,8.08]
[1757020079004,11.04767334,203.33,203.24,8.08]
[1757020079205,10.19116337,203.33,203.24,8.08]
[1757020080315,4.68,203.33,203.26,8.08]
[1757020083413,4.68,203.33,203.28,8.08]
[1757020083619,4.68,203.36,203.23,8.08]
[1757020083819,4.68,203.36,203.25,8.08]
[1757020084019,4.68,203.36,203.27,8.08]
[1757020084516,8.70784471,203.37,203.27,8.08]
[1757020084812,4.68,203.36,203.27,8.08]
[1757020087819,8.70784471,203.37,203.27,8.08]
[1757020088215,4.68,203.36,203.27,8.08]
[1757020089021,8.70784471,203.37,203.27,8.08]
[1757020089320,4.68,203.36,203.27,8.08]
[1757020089516,8.70784471,203.37,203.27,8.08]
[1757020089721,4.68,203.36,203.27,8.08]
[1757020090520,4.68,203.36,203.29,8.08]
[1757020092820,4.68,203.36,203.3,4.71170189]
[1757020093119,4.68,203.36,203.29,8.08]
[1757020093321,4.68,203.36,203.3,4.71227063]
[1757020093521,4.68,203.36,203.29,8.08]
[1757020093720,4.68,203.36,203.3,4.71199163]
[1757020093920,4.68,203.36,203.29,8.08]
[1757020094121,4.68,203.36,203.3,4.71199163]
[1757020094324,4.68,203.36,203.29,8.08]
[1757020094524,4.68,203.36,203.3,4.71174859]
[1757020094714,4.68,203.36,203.29,8.08]
[1757020097123,0.85636243,203.37,203.29,8.08]
[1757020097320,4.68,203.36,203.29,8.08]
[1757020104128,0.85636243,203.37,203.29,8.08]
[1757020104327,4.68,203.36,203.29,8.08]
[1757020113244,12.53148228,203.36,203.29,8.08]
[1757020113845,12.53148228,203.36,203.21,4.11961569]
[1757020113846,4.68,203.35,203.22,7.48]
[1757020114042,4.68,203.32,203.24,7.48]
[1757020114240,4.68,203.32,203.25,4.62466209]
[1757020114442,4.68,203.32,203.26,4.62466209]
[1757020114744,4.68,203.32,203.24,7.48]
[1757020120552,4.68,203.3,203.24,7.48]
[1757020122056,4.68,203.33,203.25,7.51747315]
[1757020122359,4.68,203.33,203.25,7.48]
[1757020122653,4.68,203.34,203.27,0.03485519]
[1757020129264,4.69,203.34,203.27,0.03485519]
[1757020129466,4.69,203.32,203.27,0.03485519]
[1757020129667,72.8,203.33,203.27,0.03485519]
[1757020129868,4.69,203.32,203.27,8.09485519]
[1757020130267,72.8,203.33,203.27,8.09485519]
[1757020130869,4.69,203.32,203.27,8.09485519]
[1757020131067,4.69,203.34,203.27,8.09485519]
[1757020131367,38.78,203.33,203.27,8.09485519]
[1757020131569,4.69,203.32,203.27,8.09485519]
[1757020131767,38.78,203.33,203.27,8.09485519]
[1757020132172,4.69,203.32,203.27,8.09485519]
[1757020132364,22.63148228,203.35,203.27,8.09485519]
[1757020132563,83.58,203.34,203.27,8.09485519]
[1757020132761,4.69,203.33,203.27,8.09485519]
[1757020132961,83.58,203.34,203.27,8.09485519]
[1757020133166,4.69,203.33,203.27,8.09485519]
[1757020133575,14.78,203.32,203.24,8.06]
[1757020134169,14.78,203.31,203.24,8.06]
[1757020134372,4.69,203.3,203.24,8.06]
[1757020134869,4.72704769,203.29,203.17,8.06]
[1757020135175,4.69,203.28,203.19,8.06]
[1757020135375,4.69,203.28,203.21,8.06]
[1757020136071,0.03329685,203.27,203.21,8.06]
[1757020158984,0.03329685,203.27,203.22,3.86547325]
[1757020159188,0.03329685,203.27,203.18,4.11961569]
[1757020159189,0.03329685,203.27,203.24,7.44]
[1757020162788,60.14,203.35,203.26,7.44]
[1757020162998,99.67,203.36,203.26,7.44]
[1757020163181,4.69,203.36,203.26,7.44]
[1757020163692,4.69,203.36,203.28,7.44]
[1757020163998,4.69,203.36,203.3,7.44]
[1757020164193,25.89625707,203.37,203.3,7.44]
[1757020168098,30.61625707,203.37,203.3,7.44]
[1757020175294,4.72,203.36,203.3,7.44]
[1757020175696,4.72,203.38,203.3,7.44]
[1757020176301,4.72,203.38,203.32,0.0325676]
[1757020176701,4.72,203.38,203.33,7.44]
[1757020176901,4.72,203.38,203.32,0.0325676]
[1757020177098,4.72,203.38,203.33,7.44]
[1757020177299,4.72,203.38,203.32,0.0325676]
[1757020178004,0.85618334,203.4,203.32,0.0325676]
[1757020178005,4.72,203.39,203.33,7.44]
[1757020200418,4.74,203.39,203.32,0.0325676]
[1757020201627,4.74,203.39,203.32,7.6225676]
[1757020202427,0.85618334,203.4,203.32,7.6225676]
[1757020202629,4.74,203.39,203.32,7.6225676]
[1757020203021,0.85618334,203.4,203.32,7.6225676]
[1757020203220,4.74,203.39,203.32,7.6225676]
[1757020203827,0.85618334,203.4,203.32,7.6225676]
[1757020204632,4.74,203.39,203.32,7.6225676]
[1757020205324,0.85618334,203.4,203.32,7.6225676]
[1757020205532,4.74,203.39,203.32,7.6225676]
[1757020205832,0.85618334,203.4,203.32,7.6225676]
[1757020206432,4.74,203.39,203.32,7.6225676]
[1757020206628,0.85618334,203.4,203.32,7.6225676]
[1757020206933,4.74,203.39,203.32,7.6225676]
[1757020208136,14.8173409,203.38,203.29,7.59]
[1757020208521,14.78,203.38,203.29,7.59]
[1757020208926,4.74,203.37,203.29,7.59]
[1757020209123,14.78,203.38,203.29,7.59]
[1757020209326,0.03246137,203.35,203.29,7.59]
[1757020209526,4.77246137,203.35,203.29,7.59]
[1757020212831,0.03246137,203.35,203.3,3.86815705]
[1757020213135,0.03246137,203.35,203.32,7.59]
[1757020225948,0.03246137,203.35,203.27,7.6]
[1757020226545,4.75246137,203.35,203.27,7.6]
[1757020244559,4.75246137,203.35,203.28,7.6]
[1757020251156,4.75246137,203.35,203.3,7.91]
[1757020251359,4.71,203.34,203.31,11.76474887]
[1757020251549,4.71,203.34,203.31,7.91]
[1757020251750,4.71,203.34,203.27,4.14602297]
[1757020251949,4.71,203.34,203.24,5.51135058]
[1757020251950,4.71,203.34,203.29,7.91]
[1757020252158,4.71,203.34,203.31,7.91]
[1757020252659,4.71,203.34,203.27,7.91]
[1757020252860,4.71,203.34,203.29,7.91]
[1757020253056,4.71,203.34,203.31,7.91]
[1757020253360,4.71,203.34,203.27,7.91]
[1757020253561,4.71,203.34,203.29,7.91]
[1757020253760,4.71,203.34,203.31,7.91]
[1757020254358,0.03246137,203.35,203.31,7.91]
[1757020255160,4.71,203.34,203.31,7.91]
[1757020256662,4.71,203.34,203.27,4.14602297]
[1757020256961,4.71,203.34,203.29,7.91]
[1757020257161,4.71,203.34,203.31,7.91]
[1757020257460,4.71,203.34,203.32,11.76837544]
[1757020257662,0.03246137,203.35,203.28,7.91]
[1757020257856,0.03246137,203.35,203.3,7.91]
[1757020258158,4.74246137,203.35,203.31,3.85837544]
[1757020258362,4.74246137,203.35,203.32,11.76837544]
[1757020258662,4.74246137,203.35,203.32,7.91]
[1757020260163,4.71,203.34,203.32,7.91]
[1757020268368,0.03246137,203.35,203.33,7.91]
[1757020268671,4.74246137,203.35,203.33,7.91]
[1757020273374,0.03246137,203.35,203.33,7.91]
[1757020273676,4.71,203.34,203.28,7.91]
[1757020273873,4.71,203.34,203.29,3.85911154]
[1757020274076,4.71,203.34,203.3,3.85911154]
[1757020274377,4.71,203.34,203.32,7.91]
[1757020276578,0.03246137,203.35,203.27,4.14602297]
[1757020276781,0.03246137,203.35,203.29,7.91]
[1757020277077,0.03246137,203.35,203.3,3.85918088]
[1757020277277,0.03246137,203.35,203.31,3.85918088]
[1757020277478,0.03246137,203.35,203.33,7.91]
[1757020277780,0.03246137,203.35,203.34,16.52047376]
[1757020278773,0.03246137,203.35,203.34,11.82891853]
[1757020280477,0.03246137,203.35,203.34,7.97]
[1757020281382,0.03246137,203.35,203.34,11.87257746]
[1757020285784,4.7,203.44,203.35,7.97]
[1757020285979,4.7,203.44,203.37,7.97]
[1757020286285,4.7,203.44,203.38,3.89844427]
[1757020286485,4.7,203.44,203.33,4.15078136]
[1757020286785,4.7,203.44,203.35,7.97]
[1757020286983,4.7,203.44,203.34,3.89841312]
[1757020286984,4.7,203.44,203.37,7.97]
[1757020287177,4.7,203.44,203.39,7.97]
[1757020288580,4.7,203.44,203.37,7.97]
[1757020288784,4.7,203.44,203.39,7.97]
[1757020289085,4.7,203.44,203.38,3.89446893]
[1757020289086,4.7,203.44,203.37,7.97]
[1757020290081,0.85596222,203.45,203.37,7.97]
[1757020294285,4.73,203.49,203.37,7.97]
[1757020294881,4.73,203.49,203.41,0.03581759]
[1757020295085,4.73,203.49,203.42,7.97]
[1757020298788,317.71579382,203.5,203.42,7.97]
[1757020298983,0.85579382,203.5,203.42,7.97]
[1757020300883,124.19,203.53,203.42,7.97]
[1757020301479,124.19,203.53,203.45,0.03429838]
[1757020301686,124.19,203.53,203.46,7.97]
[1757020304990,119.46,203.53,203.46,7.97]
[1757020305289,4.73,203.52,203.46,7.97]
[1757020306991,119.46,203.53,203.46,7.97]
[1757020307193,4.73,203.52,203.46,7.97]
[1757020307492,119.46,203.53,203.46,7.97]
[1757020307690,120.3155729,203.53,203.46,7.97]
[1757020307895,4.74,203.52,203.46,7.97]
[1757020308191,120.3155729,203.53,203.46,7.97]
[1757020308697,4.74,203.52,203.46,7.97]
[1757020315199,120.3155729,203.53,203.45,8.11429838]
[1757020315393,4.74,203.52,203.45,8.11429838]
[1757020316202,120.3155729,203.53,203.45,8.11429838]
[1757020316203,0.8555729,203.53,203.45,8.11429838]
[1757020318604,4.74,203.52,203.45,0.03429838]
[1757020319103,4.74,203.52,203.45,8.11429838]
[1757020319899,0.8555729,203.53,203.45,8.11429838]
[1757020320096,4.74,203.52,203.45,8.11429838]
[1757020320505,0.8555729,203.53,203.45,8.11429838]
[1757020320705,4.74,203.52,203.45,8.11429838]
[1757020322206,0.8555729,203.53,203.45,8.11429838]
[1757020322812,4.74,203.52,203.45,8.11429838]
[1757020323309,0.8555729,203.53,203.45,8.11429838]
[1757020323508,4.74,203.52,203.45,8.11429838]
[1757020323710,0.8555729,203.53,203.45,8.11429838]
[1757020323910,4.74,203.52,203.45,8.11429838]
[1757020324108,0.8555729,203.53,203.45,8.11429838]
[1757020324309,4.74,203.52,203.45,8.11429838]
[1757020324705,0.8555729,203.53,203.45,8.11429838]
[1757020325610,4.74,203.52,203.45,8.11429838]
[1757020337623,120.4155729,203.53,203.45,8.11429838]
[1757020338226,4.75,203.52,203.45,8.11429838]
[1757020338526,120.4155729,203.53,203.45,8.11429838]
[1757020338728,4.75,203.52,203.45,8.11429838]
[1757020340024,120.4155729,203.53,203.45,8.11429838]
[1757020340226,4.75,203.52,203.45,8.11429838]
[1757020347732,0.8555729,203.53,203.46,3.90079093]
[1757020347933,0.8555729,203.53,203.45,8.11429838]
[1757020348133,0.8555729,203.53,203.46,3.90069057]
[1757020348329,0.8555729,203.53,203.45,8.11429838]
[1757020348531,0.8555729,203.53,203.47,7.74]
[1757020349231,5.6055729,203.53,203.47,7.74]
[1757020351825,0.8555729,203.53,203.47,7.74]
[1757020352839,4.75,203.52,203.46,7.74]
[1757020353039,4.75,203.52,203.47,11.64065671]
[1757020353242,4.75,203.52,203.46,7.74]
[1757020353442,4.75,203.52,203.47,11.64064104]
[1757020353634,4.75,203.52,203.46,7.74]
[1757020353943,5.6055729,203.53,203.47,11.64064104]
[1757020354243,5.6055729,203.53,203.47,7.74]
[1757020355436,4.75,203.52,203.47,7.74]
[1757020355834,4.75,203.52,203.46,7.74]
[1757020361342,0.8555729,203.53,203.45,0.03429838]
[1757020361545,14.78,203.5,203.36,4.13614916]
[1757020361741,22.57,203.48,203.37,3.90265108]
[1757020361947,22.57,203.48,203.32,5.51135058]
[1757020361948,5.51194586,203.45,203.33,4.13614916]
[1757020362142,11.59369219,203.44,203.32,4.13614916]
[1757020362346,3.80369219,203.43,203.32,4.13614916]
[1757020362641,0.03468389,203.4,203.32,4.13614916]
[1757020363549,0.03468389,203.4,203.33,7.74]
[1757020370151,7.78,203.39,203.33,7.74]
[1757020382363,0.03468389,203.4,203.33,7.74]
[1757020425217,0.03468389,203.4,203.33,11.87614916]
[1757020425411,0.03468389,203.4,203.35,7.5]
[1757020425612,0.03468389,203.4,203.36,7.5]
[1757020425911,0.03468389,203.4,203.31,33.66]
[1757020425912,0.03468389,203.4,203.38,7.5]
[1757020440117,0.03468389,203.4,203.36,8.01]
[1757020440718,0.03468389,203.4,203.37,8.01]
[1757020445325,0.03468389,203.4,203.36,8.01]
[1757020445530,7.79468389,203.4,203.36,8.01]
[1757020446024,7.76,203.39,203.35,4.13614916]
[1757020446229,0.03468389,203.4,203.36,8.01]
[1757020448424,0.03468389,203.4,203.36,12.14614916]
[1757020448623,0.03468389,203.4,203.37,8.01]
[1757020448828,0.03468389,203.4,203.37,12.14614916]
[1757020449126,0.03468389,203.4,203.38,8.01]
[1757020449722,0.03468389,203.4,203.36,4.13614916]
[1757020449928,0.03468389,203.4,203.36,8.01]
[1757020450227,7.76,203.43,203.36,8.01]
[1757020450423,0.03196422,203.4,203.36,8.01]
[1757020450924,7.76,203.39,203.33,4.13614916]
[1757020451130,7.76,203.39,203.32,12.14614916]
[1757020452128,0.03196422,203.4,203.32,12.14614916]
[1757020452327,7.76,203.39,203.29,12.14614916]
[1757020452828,7.76,203.39,203.3,8.01]
[1757020457630,7.76,203.39,203.31,8.01]
[1757020459731,7.76,203.39,203.32,7.82]
[1757020467030,7.76,203.39,203.29,7.82]
[1757020467737,7.94695662,203.36,203.29,7.82]
[1757020480036,7.94695662,203.36,203.25,7.82]
[1757020480037,7.91,203.35,203.25,7.82]
[1757020481940,0.03695662,203.36,203.22,4.13014933]
[1757020482243,7.91,203.35,203.23,7.82]
[1757020482541,20.27194586,203.41,203.23,7.82]
[1757020482542,0.03589593,203.31,203.23,7.82]
[1757020482742,7.91,203.3,203.23,7.82]
[1757020497059,7.91,203.3,203.2,7.88]
[1757020497660,0.03467828,203.27,203.2,7.88]
[1757020497959,8.14,203.26,203.2,7.88]
[1757020498357,0.03467828,203.27,203.2,7.88]
[1757020498657,0.03467828,203.27,203.21,7.88]
[1757020500259,0.03467828,203.27,203.21,4.13014933]
[1757020500459,0.03467828,203.27,203.22,7.88]
[1757020501464,0.03467828,203.27,203.24,7.88]
[1757020501857,0.03467828,203.27,203.25,4.13014933]
[1757020502063,0.03467828,203.27,203.26,7.88]
[1757020503962,8.14,203.36,203.26,8.38]
[1757020504168,26.1716076,203.7,203.27,12.01014933]
[1757020504169,8.14,203.4,203.27,12.01014933]
[1757020504463,8.14,203.4,203.28,7.88]
[1757020504662,8.14,203.4,203.29,7.88]
[1757020504863,8.14,203.4,203.3,7.88]
[1757020505063,8.14,203.4,203.33,7.88]
[1757020505767,8.14,203.47,203.33,7.88]
[1757020506167,8.14,203.47,203.34,4.13014933]
[1757020506363,8.14,203.47,203.35,17.38]
[1757020506572,8.14,203.47,203.36,7.88]
[1757020506768,8.14,203.47,203.39,7.88]
[1757020507971,8.14,203.52,203.39,7.88]
[1757020508268,8.14,203.52,203.4,7.88]
[1757020508770,8.14,203.52,203.44,7.88]
[1757020509462,8.14,203.52,203.43,0.0341961]
[1757020510470,8.14,203.49,203.43,0.0341961]
[1757020510870,8.14,203.49,203.38,7.88]
[1757020511066,8.14,203.49,203.44,0.03528491]
[1757020511364,8.14,203.5,203.44,0.03528491]
[1757020512173,8.14,203.5,203.44,7.91528491]
[1757020512771,8.99563601,203.54,203.44,7.91528491]
[1757020512977,8.14,203.54,203.44,7.91528491]
[1757020513576,8.14,203.57,203.44,28.53528491]
[1757020513772,8.14,203.57,203.45,7.88]
[1757020513976,8.14,203.57,203.46,7.88]
[1757020514271,8.14,203.57,203.49,0.0320757]
[1757020516273,120.14,203.56,203.49,0.0320757]
[1757020516473,8.14,203.55,203.49,0.0320757]
[1757020516978,8.64,203.55,203.49,0.0320757]
[1757020517173,8.14,203.55,203.49,0.0320757]
[1757020518968,120.2,203.54,203.49,0.0320757]
[1757020519274,120.2,203.53,203.49,0.0320757]
[1757020520081,8.06,203.52,203.49,0.0320757]
[1757020522975,8.06,203.52,203.39,7.33]
[1757020523374,8.06,203.5,203.39,7.33]
[1757020523575,8.06,203.48,203.39,7.33]
[1757020524181,0.0318372,203.46,203.39,7.33]
[1757020529691,8.06,203.45,203.31,7.33]
[1757020530287,0.0332517,203.4,203.31,7.33]
[1757020533796,8.0932517,203.4,203.31,7.33]
[1757020533993,0.0332517,203.4,203.31,7.33]
[1757020536791,0.0332517,203.4,203.31,120.22]
[1757020537095,0.0332517,203.4,203.32,7.33]
[1757020538494,8.06,203.39,203.32,7.33]
[1757020540598,8.06,203.39,203.26,7.33]
[1757020541288,8.06,203.34,203.26,7.33]
[1757020541688,8.06,203.34,203.22,377.73014933]
[1757020541689,8.06,203.34,203.22,320.85014933]
[1757020541898,8.06,203.34,203.21,7.33]
[1757020542290,0.03517249,203.3,203.21,7.33]
[1757020542495,8.06,203.29,203.21,7.33]
[1757020561211,0.03517249,203.3,203.21,11.46014933]
[1757020561411,7.55,203.29,203.21,11.46014933]
[1757020564426,7.55,203.29,203.21,7.33]
[1757020568122,0.03517249,203.3,203.21,7.33]
[1757020571928,7.55,203.29,203.21,7.33]
[1757020573234,7.55,203.29,203.17,7.63]
[1757020573836,64.3,203.36,203.17,7.63]
[1757020573837,0.03586033,203.25,203.17,7.63]
[1757020581238,0.03586033,203.25,203.17,11.73926013]
[1757020581439,0.03586033,203.25,203.18,7.87]
[1757020582234,7.51586033,203.25,203.18,7.87]
[1757020582637,0.03586033,203.25,203.18,7.87]
[1757020584445,0.03586033,203.25,203.19,7.87]
[1757020592046,0.03586033,203.25,203.19,11.97926013]
[1757020592347,0.03586033,203.25,203.2,11.97926013]
[1757020592547,0.03586033,203.25,203.21,7.87]
[1757020592746,0.03586033,203.25,203.21,11.97926013]
[1757020592947,0.03586033,203.25,203.22,7.87]
[1757020593342,0.03586033,203.25,203.22,4.10926013]
[1757020593547,0.03586033,203.25,203.23,7.87]
[1757020596445,0.03586033,203.25,203.22,4.10926013]
[1757020596643,0.03586033,203.25,203.23,7.87]
[1757020599145,0.03586033,203.25,203.22,4.10926013]
[1757020599745,0.03586033,203.25,203.23,7.87]
[1757020599941,0.03586033,203.25,203.22,4.10926013]